bitfinex-derivatives/quotes_SOLF0:USTF0_20241029
["timestamp","ask_amount","ask_price","bid_price","bid_amount"]
[1730194084009,5.93941466,181.31,181.25,5.93941466]
[1730194084211,5.93941466,181.3,181.25,5.93941466]
[1730194084518,5.93941466,181.3,181.21,1.1871]
[1730194084519,5.93941466,181.3,181.23,5.93941466]
[1730194085014,2.76,181.28,181.25,2.7603]
[1730194085219,3.84,181.27,181.23,5.93941466]
[1730194086213,3.84,181.27,181.26,2.7602]
[1730194086409,3.84,181.27,181.26,8.69961466]
[1730194088108,2.7596,181.31,181.26,5.93941466]
[1730194088414,3.84,181.3,181.27,5.93941466]
[1730194089410,3.84,181.3,181.29,2.7598]
[1730194091811,2.7593,181.32,181.29,2.7598]
[1730194092013,3.84,181.31,181.29,2.7598]
[1730194093912,3.84,181.31,181.29,5.93941466]
[1730194094118,3.84,181.31,181.3,2.7596]
[1730194096420,13.35884333,181.33,181.3,2.7596]
[1730194096421,10.59964333,181.33,181.32,2.7593]
[1730194096620,14.43964333,181.33,181.32,2.7593]
[1730194096920,10.59964333,181.33,181.32,8.69871466]
[1730194097113,3.84,181.33,181.32,8.69871466]
[1730194098222,11.81224333,181.39,181.32,8.69871466]
[1730194098223,11.81224333,181.39,181.32,5.93941466]
[1730194098527,3.84,181.38,181.35,5.93941466]
[1730194098721,3.84,181.38,181.37,2.7585]
[1730194108133,2.7587,181.36,181.33,2.759]
[1730194108725,2.7589,181.35,181.32,2.7592]
[1730194108936,3.84,181.34,181.32,2.7592]
[1730194109846,3.84,181.34,181.33,2.7591]
[1730194114343,3.84,181.34,181.28,2.4407]
[1730194114543,3.84,181.34,181.28,1.2281]
[1730194114748,3.84,181.34,181.29,5.93941466]
[1730194115541,2.7592,181.33,181.31,2.7594]
[1730194117948,6.5991,181.34,181.31,8.69881466]
[1730194119358,3.84,181.34,181.33,2.7591]
[1730194119754,3.82,181.34,181.32,5.93941466]
[1730194119953,3.82,181.34,181.33,2.7591]
[1730194122354,2.7584,181.38,181.35,2.7587]
[1730194122551,2.7582,181.4,181.34,5.93941466]
[1730194122752,3.82,181.39,181.35,5.93941466]
[1730194123559,6.5783,181.39,181.36,2.7586]
[1730194125552,6.5783,181.39,181.37,2.7585]
[1730194127861,3.82,181.39,181.35,5.93941466]
[1730194128163,3.82,181.39,181.37,2.7584]
[1730194129356,3.82,181.38,181.37,2.7584]
[1730194131157,3.82,181.38,181.37,8.69781466]
[1730194131766,59.62,181.43,181.4,2.7579]
[1730194131960,3.82,181.42,181.4,2.7579]
[1730194132160,59.62,181.43,181.39,5.93941466]
[1730194132368,3.82,181.42,181.41,2.7579]
[1730194133867,3.82,181.42,181.39,5.93941466]
[1730194134069,3.82,181.42,181.4,2.758]
[1730194134364,3.82,181.42,181.39,5.93941466]
[1730194134764,59.62,181.43,181.39,5.93941466]
[1730194134964,3.82,181.42,181.39,5.93941466]
[1730194135164,3.82,181.42,181.34,1.2292]
[1730194135366,3.82,181.42,181.37,5.93941466]
[1730194135565,3.82,181.42,181.37,8.69781466]
[1730194135867,5.93941466,181.41,181.37,8.69781466]
[1730194136369,5.93941466,181.41,181.37,5.93941466]
[1730194136573,5.93941466,181.41,181.36,2.7587]
[1730194138570,5.93941466,181.41,181.37,2.7585]
[1730194139072,5.93941466,181.41,181.29,1.1904]
[1730194139273,5.93941466,181.39,181.34,2.7589]
[1730194139470,3.82,181.38,181.34,2.7589]
[1730194140376,3.82,181.38,181.35,2.7588]
[1730194143080,3.82,181.38,181.35,8.69821466]
[1730194143969,3.82,181.38,181.35,5.93941466]
[1730194144175,3.82,181.38,181.37,2.7585]
[1730194144371,16.06362794,181.42,181.37,2.7585]
[1730194144570,3.82,181.41,181.37,5.93941466]
[1730194144875,3.82,181.41,181.39,2.7581]
[1730194146779,3.82,181.41,181.4,2.7581]
[1730194147574,10.12421328,181.42,181.4,2.7581]
[1730194147767,59.62,181.43,181.41,2.7579]
[1730194147981,3.82,181.42,181.41,2.7579]
[1730194150086,3.82,181.42,181.4,2.758]
[1730194154580,59.62,181.43,181.4,2.758]
[1730194154781,3.82,181.42,181.4,2.758]
[1730194159385,13.95016225,181.42,181.4,2.758]
[1730194160384,13.95016225,181.42,181.38,5.93941466]
[1730194160883,13.95016225,181.42,181.4,2.758]
[1730194162890,3.82,181.41,181.4,2.758]
[1730194166699,3.82,181.41,181.39,2.7582]
[1730194175100,3.82,181.41,181.38,2.7584]
[1730194175998,3.82,181.41,181.39,2.7582]
[1730194176591,1.2395,181.45,181.4,2.758]
[1730194176801,3.82,181.44,181.4,2.758]
[1730194176996,3.82,181.44,181.32,5.5185]
[1730194177298,3.82,181.44,181.4,2.758]
[1730194177503,3.82,181.44,181.39,5.93941466]
[1730194178606,3.82,181.44,181.41,2.7579]
[1730194181608,3.82,181.44,181.4,2.758]
[1730194184216,9.75941466,181.44,181.4,2.758]
[1730194187116,2.72920691,181.46,181.4,5.93941466]
[1730194187314,11.05580594,181.48,181.39,5.93941466]
[1730194187315,9.75941466,181.45,181.39,5.93941466]
[1730194187518,3.82,181.44,181.4,5.93941466]
[1730194187720,3.82,181.43,181.42,2.7576]
[1730194193723,3.82,181.44,181.43,2.7576]
[1730194193930,9.85570594,181.48,181.35,349.1105]
[1730194194127,3.82,181.5,181.46,5.93941466]
[1730194194327,3.82,181.5,181.47,2.7569]
[1730194198632,3.82,181.5,181.46,5.93941466]
[1730194198929,9.75941466,181.5,181.46,2.7572]
[1730194200938,3.82,181.5,181.46,2.7572]
[1730194201332,9.75941466,181.5,181.46,2.7572]
[1730194202626,3.82,181.5,181.46,2.7572]
[1730194203435,3.82,181.5,181.46,8.69661466]
[1730194205541,3.82,181.5,181.46,5.93941466]
[1730194205739,3.82,181.5,181.49,5.93941466]
[1730194206545,3.82,181.5,181.49,8.69611466]
[1730194209043,2.756,181.54,181.51,2.7564]
[1730194209242,3.82,181.53,181.52,5.93941466]
[1730194209643,3.82,181.53,181.51,2.7564]
[1730194209842,3.82,181.53,181.52,5.93941466]
[1730194210543,3.82,181.53,181.52,8.69561466]
[1730194211143,3.82,181.53,181.52,2.7562]
[1730194211349,3.82,181.53,181.51,5.93941466]
[1730194211646,3.82,181.53,181.49,5.93941466]
[1730194211846,3.82,181.53,181.41,349.1007]
[1730194212048,3.82,181.53,181.48,5.93941466]
[1730194212245,2.7564,181.52,181.48,5.93941466]
[1730194212643,5.93941466,181.52,181.47,5.93941466]
[1730194213546,5.93941466,181.48,181.42,2.7577]
[1730194213860,5.93941466,181.45,181.38,5.93941466]
[1730194214042,3.82,181.44,181.4,5.93941466]
[1730194214242,5.93941466,181.42,181.37,5.93941466]
[1730194215247,5.93941466,181.42,181.39,2.7582]
[1730194216049,5.93941466,181.42,181.37,5.93941466]
[1730194216348,2.758,181.41,181.37,8.69781466]
[1730194216542,3.82,181.4,181.37,8.69781466]
[1730194217347,3.82,181.4,181.38,2.7584]
[1730194217948,3.82,181.4,181.38,2.7583]
[1730194218143,3.82,181.4,181.36,5.93941466]
[1730194218352,3.82,181.4,181.38,5.93941466]
[1730194218654,3.82,181.4,181.35,1.2029]
[1730194218847,3.82,181.4,181.37,5.93941466]
[1730194219248,3.82,181.4,181.38,5.93941466]
[1730194219445,3.82,181.4,181.39,2.7582]
[1730194224453,3.82,181.4,181.37,5.93941466]
[1730194224655,3.82,181.4,181.37,8.69781466]
[1730194224856,3.82,181.4,181.37,5.93941466]
[1730194225458,3.82,181.4,181.38,2.7583]
[1730194227358,3.82,181.4,181.37,2.7585]
[1730194227664,5.93941466,181.39,181.33,5.93941466]
[1730194228450,2.7585,181.38,181.35,2.7587]
[1730194228655,2.7585,181.38,181.33,5.93941466]
[1730194228864,3.82,181.37,181.33,5.93941466]
[1730194229447,3.82,181.37,181.36,2.7586]
[1730194231150,8.69751466,181.41,181.35,5.93941466]
[1730194231350,3.82,181.4,181.38,2.7583]
[1730194233356,5.93941466,181.43,181.36,5.93941466]
[1730194233560,3.82,181.42,181.32,1.2218]
[1730194233755,5.93941466,181.41,181.36,5.93941466]
[1730194234262,5.93941466,181.41,181.39,2.7582]
[1730194234448,3.82,181.42,181.36,5.93941466]
[1730194234652,2.758,181.41,181.38,2.7583]
[1730194235758,2.758,181.41,181.39,2.7582]
[1730194236859,2.7585,181.38,181.35,2.7588]
[1730194237061,3.84,181.38,181.32,1.2218]
[1730194237361,3.84,181.38,181.34,5.93941466]
[1730194238152,3.84,181.38,181.37,2.7585]
[1730194246256,8.69741466,181.42,181.39,2.7585]
[1730194246462,3.84,181.41,181.39,2.7585]
[1730194246659,3.84,181.41,181.36,5.93941466]
[1730194246862,3.84,181.41,181.39,2.7584]
[1730194250073,8.69781466,181.4,181.37,2.7587]
[1730194250669,2.7589,181.37,181.35,2.7591]
[1730194250975,3.84,181.36,181.35,2.7591]
[1730194251671,3.84,181.36,181.34,2.7592]
[1730194252174,3.84,181.36,181.35,2.7591]
[1730194255870,3.84,181.36,181.31,1.2969]
[1730194256181,3.84,181.36,181.31,7.23631466]
[1730194257369,3.84,181.36,181.35,2.7591]
[1730194257781,3.84,181.36,181.34,2.7592]
[1730194258170,3.84,181.36,181.31,5.93941466]
[1730194259686,12.53841466,181.36,181.29,5.93941466]
[1730194260078,2.7595,181.33,181.26,346.405]
[1730194260275,3.84,181.32,181.26,351.16171466]
[1730194260579,5.93941466,181.31,181.29,2.76]
[1730194260775,8.69921466,181.31,181.29,2.76]
[1730194261280,8.69921466,181.31,181.23,1.2474]
[1730194261587,3.84,181.32,181.23,7.18681466]
[1730194261588,5.93941466,181.29,181.23,7.18681466]
[1730194261780,3.84,181.28,181.23,7.18681466]
[1730194262184,3.84,181.28,181.26,2.7604]
[1730194262378,3.84,181.28,181.23,7.18681466]
[1730194263085,3.84,181.32,181.27,5.93941466]
[1730194263286,3.84,181.32,181.23,1.2474]
[1730194263287,3.84,181.32,181.28,5.93941466]
[1730194263776,3.84,181.32,181.24,1.2257]
[1730194263777,3.84,181.32,181.31,2.7597]
[1730194264679,5.93941466,181.35,181.3,5.93941466]
[1730194264877,3.84,181.34,181.32,2.7595]
[1730194266587,3.84,181.34,181.33,2.7594]
[1730194267883,59.6,181.37,181.31,5.93941466]
[1730194268083,3.84,181.36,181.33,5.93941466]
[1730194269178,3.84,181.36,181.35,2.7591]
[1730194269578,2.7579,181.43,181.4,2.7584]
[1730194269785,3.84,181.41,181.4,2.7584]
[1730194271281,3.84,181.41,181.39,2.7585]
[1730194273284,6.5983,181.41,181.38,2.7587]
[1730194273788,3.84,181.41,181.39,2.7585]
[1730194274383,2.7585,181.39,181.36,2.7589]
[1730194276085,2.7588,181.37,181.34,2.7592]
[1730194276293,3.84,181.36,181.32,5.93941466]
[1730194277690,3.84,181.36,181.35,2.7591]
[1730194278891,3.84,181.36,181.34,2.7591]
[1730194279189,3.84,181.36,181.32,5.93941466]
[1730194279584,3.84,181.36,181.35,2.7591]
[1730194281791,3.84,181.36,181.3,2.4434]
[1730194281792,6.5991,181.36,181.33,2.7593]
[1730194282584,2.7593,181.34,181.3,5.93941466]
[1730194282786,2.7593,181.34,181.28,5.93941466]
[1730194283195,2.7593,181.34,181.31,2.7596]
[1730194283387,2.7593,181.34,181.28,5.93941466]
[1730194284387,2.7593,181.34,181.32,2.7596]
[1730194285490,8.69861466,181.35,181.32,2.7596]
[1730194286293,2.7593,181.34,181.32,2.7596]
[1730194286788,2.7593,181.34,181.31,2.7597]
[1730194286991,5.93941466,181.33,181.31,2.7597]
[1730194287191,3.84,181.32,181.31,2.7597]
[1730194288290,2.7597,181.31,181.26,5.93941466]
[1730194288497,9.77941466,181.32,181.26,5.93941466]
[1730194288988,12.53911466,181.32,181.29,2.76]
[1730194290287,5.93941466,181.3,181.29,2.76]
[1730194290492,5.93941466,181.3,181.26,2.7604]
[1730194290697,5.93941466,181.29,181.26,2.7604]
[1730194290898,3.84,181.28,181.26,2.7604]
[1730194291299,5.93941466,181.27,181.25,2.7606]
[1730194291499,8.69981466,181.27,181.2,3.6938]
[1730194291692,8.69981466,181.27,181.2,9.63321466]
[1730194291893,2.7605,181.26,181.23,2.7608]
[1730194292787,2.7605,181.26,181.24,2.7608]
[1730194293202,5.93941466,181.25,181.19,80.20924885]
[1730194293401,3.84,181.24,181.22,2.761]
[1730194293793,3.84,181.24,181.19,86.14866351]
[1730194293992,3.84,181.24,181.23,2.7609]
[1730194299507,2.7601,181.29,181.26,2.7605]
[1730194299695,2.394,181.32,181.19,80.20924885]
[1730194299696,2.394,181.32,181.24,5.93941466]
[1730194299896,5.93941466,181.3,181.24,5.93941466]
[1730194300307,8.69941466,181.3,181.24,5.93941466]
[1730194300899,2.76,181.29,181.26,2.7604]
[1730194302007,5.93941466,181.28,181.26,2.7604]
[1730194302310,3.86,181.27,181.26,2.7604]
[1730194305319,2.394,181.32,181.24,5.93941466]
[1730194305320,5.93941466,181.3,181.24,5.93941466]
[1730194305512,3.86,181.29,181.27,2.7603]
[1730194305915,6.62,181.29,181.27,2.7603]
[1730194306118,3.86,181.29,181.27,2.7603]
[1730194307915,6.62,181.29,181.27,2.7603]
[1730194308424,6.62,181.29,181.24,5.93941466]
[1730194308621,6.62,181.29,181.26,2.7604]
[1730194309527,6.62,181.29,181.27,2.7603]
[1730194312925,5.93941466,181.28,181.19,80.20924885]
[1730194313119,2.7604,181.27,181.24,2.7607]
[1730194313726,5.93941466,181.27,181.22,5.93941466]
[1730194313918,5.93941466,181.25,181.23,2.7609]
[1730194314122,3.86,181.24,181.2,5.93941466]
[1730194314531,3.86,181.24,181.22,2.761]
[1730194315928,6.6208,181.24,181.22,2.761]
[1730194316732,3.86,181.24,181.22,2.761]
[1730194317934,3.86,181.24,181.19,86.14866351]
[1730194318736,3.86,181.24,181.22,2.761]
[1730194320527,9.79941466,181.24,181.15,3.8]
[1730194320723,3.86,181.24,181.17,5.93941466]
[1730194320928,5.93941466,181.21,181.15,3.8]
[1730194321134,3.86,181.2,181.15,9.73941466]
[1730194321333,3.86,181.2,181.18,2.7616]
[1730194323440,3.86,181.2,181.15,9.73941466]
[1730194324240,3.86,181.2,181.17,5.93941466]
[1730194324445,3.86,181.2,181.15,3.8]
[1730194324740,3.86,181.2,181.17,5.93941466]
[1730194325137,3.86,181.2,181.19,2.7616]
[1730194326340,8.70051466,181.23,181.2,2.7613]
[1730194326536,3.86,181.22,181.2,2.7613]
[1730194327138,3.86,181.22,181.17,5.93941466]
[1730194327344,3.86,181.22,181.2,5.93941466]
[1730194327750,3.86,181.22,181.21,2.7612]
[1730194327948,3.86,181.25,181.17,5.5237]
[1730194328243,3.86,181.25,181.24,5.93941466]
[1730194328741,3.86,181.25,181.24,8.70021466]
[1730194328936,1.2076,181.32,181.24,5.93941466]
[1730194329139,3.86,181.31,181.27,5.93941466]
[1730194329945,3.86,181.3,181.28,5.93941466]
[1730194331240,3.86,181.3,181.29,2.76]
[1730194335051,3.86,181.3,181.28,2.7601]
[1730194335237,3.86,181.3,181.26,5.93941466]
[1730194336646,3.86,181.3,181.29,2.76]
[1730194338247,3.86,181.3,181.29,8.69941466]
[1730194341644,59.6,181.34,181.29,5.93941466]
[1730194341845,59.6,181.34,181.33,2.7594]
[1730194342151,3.86,181.34,181.33,2.7594]
[1730194343751,9.79941466,181.34,181.22,3.7379]
[1730194344055,2.7597,181.32,181.29,2.76]
[1730194344645,2.7598,181.31,181.29,2.76]
[1730194344849,5.93941466,181.33,181.29,2.76]
[1730194345054,5.93941466,181.33,181.27,5.93941466]
[1730194345248,2.7596,181.32,181.28,2.7601]
[1730194345448,2.7596,181.32,181.27,5.93941466]
[1730194346050,2.7596,181.32,181.3,2.7599]
[1730194346455,5.93941466,181.31,181.25,5.93941466]
[1730194346650,3.86,181.3,181.25,5.93941466]
[1730194347053,6.62,181.3,181.25,5.93941466]
[1730194347247,6.62,181.3,181.26,2.7604]
[1730194347447,3.86,181.3,181.24,5.93941466]
[1730194347759,5.93941466,181.29,181.22,9.67731466]
[1730194347955,5.93941466,181.29,181.25,2.7606]
[1730194348258,8.69971466,181.28,181.25,2.7606]
[1730194350563,2.7604,181.27,181.22,5.93941466]
[1730194350855,3.86,181.26,181.21,344.0]
[1730194351058,6.6206,181.26,181.2,5.93941466]
[1730194351255,6.6206,181.26,181.23,2.7608]
[1730194351862,6.6206,181.26,181.24,2.7608]
[1730194352251,12.56001466,181.26,181.24,2.7608]
[1730194352451,12.56001466,181.26,181.23,2.7609]
[1730194353361,8.70021466,181.24,181.21,2.7612]
[1730194353565,5.93941466,181.22,181.16,3.6602]
[1730194353767,3.86,181.21,181.16,3.6602]
[1730194354261,3.86,181.21,181.15,80.22112658]
[1730194354660,6.6214,181.21,181.18,2.7616]
[1730194356263,3.86,181.21,181.2,2.7614]
[1730194361470,3.84,181.22,181.19,5.93941466]
[1730194361667,3.84,181.23,181.19,5.93941466]
[1730194361970,3.84,181.23,181.22,2.7611]
[1730194365167,3.84,181.23,181.19,5.93941466]
[1730194365754,3.84,181.23,181.22,2.7611]
[1730194367766,5.93941466,181.27,181.2,5.93941466]
[1730194368066,6.6005,181.26,181.23,2.7608]
[1730194368259,3.84,181.26,181.2,5.93941466]
[1730194368671,3.84,181.26,181.25,2.7606]
[1730194370259,3.84,181.26,181.16,349.524]
[1730194370461,5.93941466,181.25,181.16,349.524]
[1730194370668,5.93941466,181.25,181.19,5.93941466]
[1730194370867,8.70011466,181.25,181.2,2.7613]
[1730194371173,8.70011466,181.25,181.19,5.93941466]
[1730194372473,8.70011466,181.25,181.23,2.7609]
[1730194382564,5.93941466,181.25,181.24,2.7608]
[1730194383974,2.7601,181.29,181.26,2.7604]
[1730194384176,3.84,181.28,181.26,2.7604]
[1730194384778,6.6002,181.28,181.26,2.7604]
[1730194387475,6.6002,181.28,181.25,2.7606]
[1730194390083,3.84,181.28,181.27,2.7603]
[1730194390685,3.84,181.28,181.19,9.3429]
[1730194390880,5.93941466,181.27,181.25,2.7606]
[1730194391677,8.69981466,181.27,181.25,2.7606]
[1730194391877,5.93941466,181.27,181.18,1.3031]
[1730194392083,5.93941466,181.26,181.23,2.7609]
[1730194392282,2.7607,181.25,181.23,2.7609]
[1730194392482,3.82,181.24,181.23,2.7609]
[1730194401584,2.761,181.23,181.2,2.7613]
[1730194402089,9.75941466,181.24,181.18,2.7616]
[1730194402090,2.7612,181.21,181.18,2.7616]
[1730194402288,5.93941466,181.22,181.15,5.93941466]
[1730194402792,8.70061466,181.22,181.19,2.7614]
[1730194404186,5.93941466,181.22,181.12,2.4758]
[1730194404490,5.93941466,181.18,181.16,2.7619]
[1730194404691,3.82,181.17,181.16,2.7619]
[1730194405592,1.1954,181.23,181.18,2.7616]
[1730194405593,2.7613,181.21,181.18,2.7616]
[1730194405786,3.82,181.2,181.15,5.93941466]
[1730194407290,3.82,181.2,181.19,2.7616]
[1730194409098,9.75941466,181.2,181.18,2.7617]
[1730194409394,9.75941466,181.2,181.15,5.93941466]
[1730194409596,12.52091466,181.2,181.15,5.93941466]
[1730194410401,12.52091466,181.2,181.12,2.4758]
[1730194410596,12.52091466,181.2,181.14,5.93941466]
[1730194410799,12.52091466,181.2,181.17,2.7618]
[1730194411191,8.70101466,181.19,181.17,2.7618]
[1730194411390,5.93941466,181.19,181.12,2.4758]
[1730194411593,5.93941466,181.19,181.16,2.762]
[1730194412401,2.7617,181.18,181.16,2.762]
[1730194412988,3.82,181.2,181.14,5.93941466]
[1730194413193,6.5815,181.2,181.14,5.93941466]
[1730194414107,6.5815,181.2,181.18,2.7617]
[1730194416903,8.70111466,181.19,181.16,2.7619]
[1730194418104,5.93941466,181.19,181.16,2.7619]
[1730194418410,3.82,181.2,181.16,2.7619]
[1730194418411,8.70121466,181.18,181.16,2.7619]
[1730194419300,2.7618,181.18,181.16,2.7619]
[1730194421105,8.70121466,181.18,181.16,2.7619]
[1730194422914,2.762,181.16,181.14,2.7622]
[1730194423207,3.82,181.15,181.14,2.7622]
[1730194438421,5.93941466,181.19,181.13,5.93941466]
[1730194438622,6.5817,181.18,181.16,2.7619]
[1730194441814,5.93941466,181.17,181.16,2.7619]
[1730194449224,6.5817,181.18,181.16,2.7619]
[1730194449423,12.52111466,181.18,181.16,2.7619]
[1730194455029,5.93941466,181.18,181.14,5.93941466]
[1730194455329,8.70061466,181.22,181.18,2.7616]
[1730194455526,3.82,181.21,181.18,2.7616]
[1730194458031,5.93941466,181.2,181.18,2.7616]
[1730194458226,5.93941466,181.2,181.1,5.5259]
[1730194458430,5.93941466,181.19,181.15,2.762]
[1730194458921,3.82,181.21,181.15,2.7621]
[1730194459127,5.93941466,181.19,181.13,5.93941466]
[1730194459530,5.93941466,181.19,181.16,2.7619]
[1730194460630,8.70101466,181.19,181.16,2.7619]
[1730194461928,2.7617,181.18,181.15,2.7621]
[1730194462229,6.5817,181.18,181.15,2.7621]
[1730194463926,6.5817,181.18,181.13,5.93941466]
[1730194464232,6.5817,181.18,181.16,2.762]
[1730194465427,3.82,181.18,181.15,2.7621]
[1730194465628,5.93941466,181.17,181.15,2.7621]
[1730194466336,5.93941466,181.17,181.16,2.762]
[1730194467430,3.82,181.18,181.17,2.7619]
[1730194476637,8.70081466,181.21,181.15,5.93941466]
[1730194476841,3.82,181.2,181.18,2.7616]
[1730194477244,3.82,181.19,181.18,2.7616]
[1730194487761,3.82,181.19,181.14,5.93941466]
[1730194487965,2.7618,181.18,181.1,5.5258]
[1730194488169,5.93941466,181.17,181.08,346.5007]
[1730194488370,5.93941466,181.17,181.1,5.93941466]
[1730194488560,2.762,181.16,181.1,5.93941466]
[1730194488761,3.82,181.15,181.1,5.93941466]
[1730194489468,3.82,181.15,181.14,2.7623]
[1730194492667,3.82,181.15,181.14,8.70171466]
[1730194494663,2.7614,181.2,181.14,5.93941466]
[1730194494870,3.82,181.19,181.17,2.7617]
[1730194498670,3.82,181.19,181.18,2.7617]
[1730194506085,2.7619,181.17,181.15,2.7621]
[1730194506285,8.70131466,181.17,181.15,2.7621]
[1730194506482,3.82,181.19,180.97,344.0]
[1730194506483,22.51941466,181.16,180.97,344.0]
[1730194506778,22.51941466,181.16,181.01,5.93941466]
[1730194506779,5.93941466,181.08,181.01,5.93941466]
[1730194506978,8.70241466,181.1,181.03,5.93941466]
[1730194507180,3.82,181.09,181.05,5.93941466]
[1730194507380,3.82,181.08,180.99,3.7439]
[1730194507574,5.93941466,181.13,180.99,3.7439]
[1730194507575,8.70201466,181.13,181.09,2.763]
[1730194507771,3.82,181.12,181.09,2.763]
[1730194508184,3.82,181.12,181.08,2.7632]
[1730194509584,5.93941466,181.11,181.08,2.7632]
[1730194509978,5.93941466,181.09,181.07,2.7633]
[1730194510279,3.82,181.08,181.07,2.7633]
[1730194514489,9.75941466,181.08,180.99,347.7439]
[1730194514783,5.93941466,181.07,180.99,3.7439]
[1730194514988,5.93941466,181.07,181.01,5.93941466]
[1730194515289,5.93941466,181.07,181.06,2.7635]
[1730194516580,5.93941466,181.07,181.02,5.93941466]
[1730194517483,5.93941466,181.07,181.0,5.93941466]
[1730194518187,5.93941466,181.07,180.99,3.7439]
[1730194518380,5.93941466,181.07,181.0,5.93941466]
[1730194518794,5.93941466,181.07,181.06,2.7635]
[1730194520082,3.82,181.07,181.02,5.93941466]
[1730194520383,3.82,181.06,181.02,5.93941466]
[1730194520588,3.82,181.05,181.02,5.93941466]
[1730194520790,3.82,181.05,181.04,2.7638]
[1730194525885,5.93941466,181.08,181.07,2.7634]
[1730194526090,9.75941466,181.08,181.07,2.7634]
[1730194526598,3.82,181.08,181.07,2.7634]
[1730194529294,2.7625,181.13,181.08,2.7632]
[1730194529594,5.93941466,181.11,181.04,5.93941466]
[1730194530193,187.81673885,181.15,181.06,5.93941466]
[1730194530403,187.81673885,181.15,181.08,5.93941466]
[1730194530404,3.82,181.14,181.08,5.93941466]
[1730194530603,9.75941466,181.14,181.08,5.93941466]
[1730194530792,5.93941466,181.12,181.05,5.5272]
[1730194530999,5.93941466,181.12,181.06,5.93941466]
[1730194531604,5.93941466,181.12,181.11,2.7628]
[1730194531902,59.66,181.15,181.09,5.93941466]
[1730194532096,3.82,181.14,181.11,5.93941466]
[1730194532494,3.82,181.13,181.12,2.7626]
[1730194533497,3.82,181.13,181.12,8.70201466]
[1730194536004,59.66,181.15,181.14,2.7623]
[1730194536302,3.82,181.15,181.14,5.93941466]
[1730194536896,3.82,181.15,181.14,8.70171466]
[1730194538902,8.70081466,181.2,181.14,5.93941466]
[1730194539108,3.82,181.19,181.14,5.93941466]
[1730194539512,3.82,181.19,181.16,2.7619]
[1730194539805,3.82,181.19,181.14,5.93941466]
[1730194540005,6.5816,181.19,181.16,2.7619]
[1730194540708,3.82,181.18,181.16,2.7619]
[1730194542006,3.82,181.18,181.17,2.7619]
[1730194545411,3.82,181.18,181.07,1.1847]
[1730194545609,3.82,181.18,181.16,2.762]
[1730194546195,6.5817,181.18,181.16,2.762]
[1730194546395,3.82,181.18,181.16,2.762]
[1730194547207,3.82,181.18,181.14,5.93941466]
[1730194547413,3.82,181.18,181.17,2.7619]
[1730194548005,1.2589,181.21,181.15,5.93941466]
[1730194548208,3.88,181.2,181.19,2.7615]
[1730194553313,16.58,181.28,181.18,5.93941466]
[1730194553507,3.88,181.23,181.21,2.7612]
[1730194554420,6.641,181.23,181.21,2.7612]
[1730194556211,2.761,181.23,181.21,2.7612]
[1730194556412,3.88,181.22,181.21,2.7612]
[1730194562422,59.68,181.24,181.23,2.7609]
[1730194562819,63.56,181.24,181.23,2.7609]
[1730194564422,63.56,181.24,181.16,5.524]
[1730194564621,63.56,181.24,181.21,2.7612]
[1730194565223,2.761,181.23,181.21,2.7612]
[1730194565423,63.56,181.24,181.19,5.93941466]
[1730194565619,63.56,181.24,181.22,2.7611]
[1730194567226,66.3208,181.24,181.22,2.7611]
[1730194568429,66.3208,181.24,181.21,2.7612]
[1730194568821,66.3208,181.24,181.19,5.93941466]
[1730194569030,2.7609,181.23,181.21,2.7612]